{"text_format":"3","workbook":"xlsx","n_sheets":2,"sheets":["Mulai","Faktur Layanan"],"not_rendered":{"images":1,"defined_names":1},"read":"whole","date_system":"1900"}

{"sheet":"Mulai","index":0,"n_rows":8,"n_cols":2,"rows_kept":8}
[null,"TENTANG TEMPLAT INI"]
[null,"Gunakan templat ini untuk membuat Faktur Layanan."]
[null,"Isi detail Nomor faktur, Tanggal, Nama Perusahaan, Alamat, Slogan, dan kirim tagihan Kepada."]
[null,"Masukkan informasi ke dalam tabel."]
[null,"Total akan dihitung secara otomatis untuk Anda."]
[null,"Catatan: "]
[null,"Instruksi tambahan telah disediakan dalam kolom A di lembar kerja FAKTUR LAYANAN. Teks ini sengaja disembunyikan. Untuk menghapus teks, pilih kolom A, lalu pilih HAPUS. Untuk memperlihatkan teks, pilih kolom A, lalu ubah warna font."]
[null,"Untuk mempelajari selengkapnya tentang tabel, tekan SHIFT, lalu F10 dalam tabel, pilih opsi TABEL, kemudian pilih TEKS ALTERNATIF."]

{"sheet":"Faktur Layanan","index":1,"n_rows":43,"n_cols":5,"rows_kept":43,"merged":[[0,1,0,2],[0,3,0,4],[1,1,1,4],[2,1,2,3],[3,1,3,3],[4,1,4,2],[5,1,5,2],[6,1,6,2],[7,1,7,2],[41,1,41,2],[41,3,41,4],[42,1,42,4]]}
["Buat Faktur Layanan di lembar kerja ini. Masukkan Logo Perusahaan di sel sebelah kanan dan judul lembar kerja di sel D1. Instruksi bermanfaat tentang cara menggunakan lembar kerja tersedia dalam sel pada kolom ini. Instruksi berikutnya berada dalam sel A3.","Tempat penampung logo berada dalam sel ini.",null,"FAKTUR"]
[]
["Masukkan Nama Perusahaan dalam sel di sebelah kanan.","Nama Perusahaan Anda"]
["Masukkan Slogan Perusahaan dalam sel di sebelah kanan.","Slogan Perusahaan Anda"]
["Masukkan Alamat Perusahaan dalam sel di sebelah kanan dan Nomor faktur dalam sel E5.","Alamat",null,"NO. FAKTUR","No."]
["Masukkan Kota, Provinsi, dan Kode Pos dalam sel di sebelah kanan, dan Tanggal dalam sel E6.","Kota, Provinsi, dan Kode Pos",null,"TANGGAL ",{"$f":"TODAY()","v":"2019-04-18"}]
["Masukkan nomor Telepon dan Faks dalam sel di sebelah kanan dan ID dalam sel E7.","Telepon Faks",null,"ID PELANGGAN ","ID"]
["Masukkan alamat Email dalam sel di sebelah kanan","Email"]
["Label Kepada berada dalam sel di sebelah kanan. Masukkan detail kirim tagihan Kepada seperti Nama, Nama Perusahaan, Alamat, dan Nomor telepon dalam sel C9 hingga C13. Instruksi berikutnya berada dalam sel A14.","KEPADA","Nama"]
[null,null,"Nama Perusahaan"]
[null,null,"Alamat"]
[null,null,"Kota, Provinsi, dan Kode Pos"]
[null,null,"Telepon"]
["Masukkan informasi dalam tabel Detail Penjualan mulai dari sel di sebelah kanan. Instruksi berikutnya berada dalam sel A17.","STAF PENJUALAN","PEKERJAAN","KETENTUAN PEMBAYARAN","TANGGAL JATUH TEMPO"]
[{"$nulls":3},"Lunas setelah faktur diterima"]
[]
["Masukkan informasi dalam tabel Faktur mulai dari sel di sebelah kanan. Total dan Subtotal akan dihitung secara otomatis. Instruksi berikutnya berada dalam sel A42.","JUMLAH","DESKRIPSI","HARGA SATUAN","TOTAL HARGA"]
[{"$nulls":4},{"$f":"IF(SUM(B18)>0,SUM(B18*'Faktur Layanan'!$D18),\"\")","v":""}]
[{"$nulls":4},{"$f":"IF(SUM(B19)>0,SUM(B19*'Faktur Layanan'!$D19),\"\")","v":""}]
[{"$nulls":4},{"$f":"IF(SUM(B20)>0,SUM(B20*'Faktur Layanan'!$D20),\"\")","v":""}]
[{"$nulls":4},{"$f":"IF(SUM(B21)>0,SUM(B21*'Faktur Layanan'!$D21),\"\")","v":""}]
[{"$nulls":4},{"$f":"IF(SUM(B22)>0,SUM(B22*'Faktur Layanan'!$D22),\"\")","v":""}]
[{"$nulls":4},{"$f":"IF(SUM(B23)>0,SUM(B23*'Faktur Layanan'!$D23),\"\")","v":""}]
[{"$nulls":4},{"$f":"IF(SUM(B24)>0,SUM(B24*'Faktur Layanan'!$D24),\"\")","v":""}]
[{"$nulls":4},{"$f":"IF(SUM(B25)>0,SUM(B25*'Faktur Layanan'!$D25),\"\")","v":""}]
[{"$nulls":4},{"$f":"IF(SUM(B26)>0,SUM(B26*'Faktur Layanan'!$D26),\"\")","v":""}]
[{"$nulls":4},{"$f":"IF(SUM(B27)>0,SUM(B27*'Faktur Layanan'!$D27),\"\")","v":""}]
[{"$nulls":4},{"$f":"IF(SUM(B28)>0,SUM(B28*'Faktur Layanan'!$D28),\"\")","v":""}]
[{"$nulls":4},{"$f":"IF(SUM(B29)>0,SUM(B29*'Faktur Layanan'!$D29),\"\")","v":""}]
[{"$nulls":4},{"$f":"IF(SUM(B30)>0,SUM(B30*'Faktur Layanan'!$D30),\"\")","v":""}]
[{"$nulls":4},{"$f":"IF(SUM(B31)>0,SUM(B31*'Faktur Layanan'!$D31),\"\")","v":""}]
[{"$nulls":4},{"$f":"IF(SUM(B32)>0,SUM(B32*'Faktur Layanan'!$D32),\"\")","v":""}]
[{"$nulls":4},{"$f":"IF(SUM(B33)>0,SUM(B33*'Faktur Layanan'!$D33),\"\")","v":""}]
[{"$nulls":4},{"$f":"IF(SUM(B34)>0,SUM(B34*'Faktur Layanan'!$D34),\"\")","v":""}]
[{"$nulls":4},{"$f":"IF(SUM(B35)>0,SUM(B35*'Faktur Layanan'!$D35),\"\")","v":""}]
[{"$nulls":4},{"$f":"IF(SUM(B36)>0,SUM(B36*'Faktur Layanan'!$D36),\"\")","v":""}]
[{"$nulls":4},{"$f":"IF(SUM(B37)>0,SUM(B37*'Faktur Layanan'!$D37),\"\")","v":""}]
[{"$nulls":3},"SUBTOTAL",{"$f":"IF(SUM(E18:E37)>0,SUM(E18:E37),\"\")","v":""}]
[{"$nulls":3},"PAJAK PENJUALAN"]
[{"$nulls":3},"TOTAL",{"$f":"IF(SUM(E38)>0,SUM((E38*E39)+E38),\"\")","v":""}]
[]
["Nama Perusahaan akan diperbarui secara otomatis dalam sel D42.","Kirim semua cek pembayaran kepada",null,{"$f":"B3","v":"Nama Perusahaan Anda"}]
["Ucapan Terima Kasih berada dalam sel di sebelah kanan.","TERIMA KASIH ATAS KERJA SAMA ANDA!"]